fUST/lending_fUST_20240715
["ID","MTS","AMOUNT","RATE_DAILY","PERIOD"]
[332178712,1721008243525,-500.0,0.00024657,2]
[332178713,1721008243535,-504.96795269,0.00024657,2]
[332178714,1721008243544,-500.0,0.00024657,2]
[332178715,1721008243553,-500.0,0.00024657,2]
[332178716,1721008243562,-504.10322643,0.00024657,2]
[332178717,1721008243571,-503.78983757,0.00024657,2]
[332178718,1721008243580,-501.99178839,0.00024657,2]
[332178719,1721008243589,-500.0,0.00024657,2]
[332178720,1721008243599,-500.0,0.00024657,2]
[332178721,1721008243608,-501.23163222,0.00024657,2]
[332178722,1721008243618,-500.0,0.00024657,2]
[332178723,1721008243627,-500.0,0.00024657,2]
[332178724,1721008243637,-520.36763088,0.00024657,2]
[332178725,1721008243646,-500.0,0.00024657,2]
[332178726,1721008243655,-500.0,0.00024657,2]
[332178727,1721008243664,-500.0,0.00024657,2]
[332178728,1721008243674,-500.0,0.00024657,2]
[332178729,1721008243683,-500.0,0.00024657,2]
[332178730,1721008243692,-500.0,0.00024657,2]
[332178731,1721008243701,-500.0,0.00024657,2]
[332178732,1721008243711,-504.09789004,0.00024657,2]
[332178733,1721008243720,-515.11711716,0.00024657,2]
[332178734,1721008243729,-539.89694814,0.00024657,2]
[332178735,1721008243738,-630.38968956,0.00024657,2]
[332178736,1721008243748,-500.0,0.00024657,2]
[332178737,1721008243757,-500.0,0.00024657,2]
[332178738,1721008243766,-500.0,0.00024657,2]
[332178739,1721008243775,-500.0,0.00024657,2]
[332178740,1721008243783,-500.0,0.00024657,2]
[332178741,1721008243793,-518.01562917,0.00024657,2]
[332178742,1721008243802,-517.03726131,0.00024657,2]
[332178743,1721008243811,-500.0,0.00024657,2]
[332178744,1721008243820,-500.0,0.00024657,2]
[332178745,1721008243829,-514.21223352,0.00024657,2]
[332178746,1721008243837,-500.0,0.00024657,2]
[332178747,1721008243846,-504.9879137,0.00024657,2]
[332178748,1721008243858,-500.0,0.00024657,2]
[332178749,1721008243867,-500.0,0.00024657,2]
[332178750,1721008243876,-500.0,0.00024657,2]
[332178751,1721008243885,-500.0,0.00024657,2]
[332178752,1721008243895,-500.0,0.00024657,2]
[332178753,1721008243904,-330.83450562,0.00024657,2]
[332178754,1721008243913,-500.0,0.00024657,2]
[332178755,1721008243922,-500.0,0.00024657,2]
[332178756,1721008243933,-500.0,0.00024657,2]
[332178757,1721008243942,-500.0,0.00024657,2]
[332178758,1721008243951,-500.0,0.00024657,2]
[332178759,1721008243960,-500.0,0.00024657,2]
[332178760,1721008243969,-500.0,0.00024657,2]
[332178761,1721008243978,-288.52335405,0.00024657,2]
[332178762,1721008243987,-505.2861566,0.00024657,2]
[332178763,1721008243996,-500.0,0.00024657,2]
[332178764,1721008244005,-500.0,0.00024657,2]
[332178765,1721008244015,-500.0,0.00024657,2]
[332178766,1721008244024,-500.0,0.00024657,2]
[332178767,1721008244033,-500.0,0.00024657,2]
[332178768,1721008244042,-500.0,0.00024657,2]
[332178769,1721008244051,-500.0,0.00024657,2]
[332178770,1721008244060,-505.28232987,0.00024657,2]
[332178771,1721008244069,-500.0,0.00024657,2]
[332178772,1721008244078,-500.0,0.00024657,2]
[332178773,1721008244087,-500.0,0.00024657,2]
[332178774,1721008244096,-500.0,0.00024657,2]
[332178775,1721008244105,-509.11486679,0.00024657,2]
[332178776,1721008244115,-500.0,0.00024657,2]
[332178777,1721008244124,-438.36043315,0.00024657,2]
[332178778,1721008244133,-502.33163512,0.00024657,2]
[332178779,1721008244142,-500.0,0.00024657,2]
[332178780,1721008244151,-500.0,0.00024657,2]
[332178781,1721008244159,-500.0,0.00024657,2]
[332178782,1721008244168,-500.0,0.00024657,2]
[332178783,1721008244178,-496.51856817,0.00024657,2]
[332178784,1721008244187,-514.15243101,0.00024657,2]
[332178785,1721008244196,-500.0,0.00024657,2]
[332178786,1721008244205,-500.0,0.00024657,2]
[332178787,1721008244214,-488.95170897,0.00024657,2]
[332178788,1721008244224,-500.0,0.00024657,2]
[332178789,1721008244233,-500.0,0.00024657,2]
[332178790,1721008244242,-500.0,0.00024657,2]
[332178791,1721008244251,-1500.0,0.00024657,2]
[332178792,1721008244261,-500.0,0.00024657,2]
[332178793,1721008244270,-507.74649497,0.00024657,2]
[332178794,1721008244279,-508.95213563,0.00024657,2]
[332178795,1721008244288,-700.3,0.00024657,2]
[332178796,1721008244297,-500.0,0.00024657,2]
[332178797,1721008244306,-500.5725604,0.00024657,2]
[332178798,1721008244316,-500.0,0.00024657,2]
[332178799,1721008244325,-500.0,0.00024657,2]
[332178800,1721008244334,-500.0,0.00024657,2]
[332178801,1721008244343,-500.0,0.00024657,2]
[332178802,1721008244352,-500.0,0.00024657,2]
[332178803,1721008244361,-500.0,0.00024657,2]
[332178804,1721008244371,-502.51468271,0.00024657,2]
[332178805,1721008244380,-500.0,0.00024657,2]
[332178806,1721008244389,-243.21423801,0.00024657,2]
[332178807,1721008244557,-619.70824342,0.00024189,2]
[332178808,1721008244749,-3627.42154882,0.00024189,2]
[332178809,1721008244758,-256.78576199,0.00024657,2]
[332178810,1721008244767,-500.0,0.00024657,2]
[332178811,1721008244777,-500.0,0.00024657,2]
[332178812,1721008244786,-500.0,0.00024657,2]
[332178813,1721008244795,-500.0,0.00024657,2]
[332178814,1721008244805,-153.46173617,0.00024657,2]
[332178815,1721008244816,-346.53826383,0.00024657,2]
[332178816,1721008244825,-500.0,0.00024657,2]
[332178817,1721008244834,-500.0,0.00024657,2]
[332178818,1721008244843,-500.0,0.00024657,2]
[332178819,1721008244855,-500.0,0.00024657,2]
[332178820,1721008244864,-500.0,0.00024657,2]
[332178821,1721008244874,-501.54796492,0.00024657,2]
[332178822,1721008244883,-501.39394852,0.00024657,2]
[332178823,1721008244892,-500.0,0.00024657,2]
[332178824,1721008244902,-503.16179963,0.00024657,2]
[332178825,1721008244911,-500.0,0.00024657,2]
[332178826,1721008244920,-500.0,0.00024657,2]
[332178827,1721008244932,-500.0,0.00024657,2]
[332178828,1721008244941,-504.2141408,0.00024657,2]
[332178829,1721008244950,-500.0,0.00024657,2]
[332178830,1721008244959,-504.11134836,0.00024657,2]
[332178831,1721008244968,-500.0,0.00024657,2]
[332178832,1721008244979,-500.0,0.00024657,2]
[332178833,1721008244989,-500.0,0.00024657,2]
[332178834,1721008244998,-180.72649025,0.00024657,2]
[332178835,1721008245010,-319.27350975,0.00024657,2]
[332178836,1721008245021,-500.0,0.00024657,2]
[332178837,1721008245056,-476.83653318,0.00024657,2]
[332178838,1721008245065,-1348.3,0.00024657,2]
[332178839,1721008245074,-534.80602472,0.00024657,2]
[332178840,1721008245083,-500.0,0.00024657,2]
[332178841,1721008245091,-500.0,0.00024657,2]
[332178842,1721008245101,-500.0,0.00024657,2]
[332178843,1721008245110,-500.0,0.00024657,2]
[332178844,1721008245120,-161.75417226,0.00024657,2]
[332178845,1721008245129,-500.0,0.00024657,2]
[332178846,1721008245138,-500.0,0.00024657,2]
[332178847,1721008245148,-500.0,0.00024657,2]
[332178848,1721008245157,-531.31300266,0.00024657,2]
[332178849,1721008245166,-500.0,0.00024657,2]
[332178850,1721008245175,-933.1,0.00024657,2]
[332178851,1721008245184,-3249.68,0.00024657,2]
[332178852,1721008245193,-500.0,0.00024657,2]
[332178853,1721008245203,-500.0,0.00024657,2]
[332178854,1721008245212,-500.0,0.00024657,2]
[332178855,1721008245222,-568.09694775,0.00024657,2]
[332178856,1721008245231,-500.0,0.00024657,2]
[332178857,1721008245241,-226.637077,0.00024657,2]
[332178858,1721008245251,-500.0,0.00024657,2]
[332178859,1721008245260,-500.0,0.00024657,2]
[332178860,1721008245269,-500.0,0.00024657,2]
[332178861,1721008245279,-501.536391,0.00024657,2]
[332178862,1721008245289,-500.0,0.00024657,2]
[332178863,1721008245299,-501.33830011,0.00024657,2]
[332178864,1721008245308,-500.0,0.00024657,2]
[332178865,1721008245317,-500.0,0.00024657,2]
[332178866,1721008245327,-500.0,0.00024657,2]
[332178867,1721008245338,-500.0,0.00024657,2]
[332178868,1721008245347,-517.65902373,0.00024657,2]
[332178869,1721008245357,-500.0,0.00024657,2]
[332178870,1721008245367,-500.0,0.00024657,2]
[332178871,1721008245377,-500.0,0.00024657,2]
[332178872,1721008245387,-500.0,0.00024657,2]
[332178873,1721008245396,-500.0,0.00024657,2]
[332178874,1721008245406,-500.0,0.00024657,2]
[332178875,1721008245415,-500.0,0.00024657,2]
[332178876,1721008245424,-500.0,0.00024657,2]
[332178877,1721008245436,-200.0,0.00024657,2]
[332178878,1721008245446,-500.0,0.00024657,2]
[332178879,1721008245456,-500.0,0.00024657,2]
[332178880,1721008245466,-500.0,0.00024657,2]
[332178881,1721008245481,-500.0,0.00024657,2]
[332178882,1721008245491,-500.0,0.00024657,2]
[332178883,1721008245500,-500.0,0.00024657,2]
[332178884,1721008245511,-500.0,0.00024657,2]
[332178885,1721008245521,-500.0,0.00024657,2]
[332178886,1721008245530,-500.0,0.00024657,2]
[332178887,1721008245541,-500.0,0.00024657,2]
[332178888,1721008245551,-500.0,0.00024657,2]
[332178889,1721008245561,-500.0,0.00024657,2]
[332178890,1721008245571,-552.60727105,0.00024657,2]
[332178891,1721008245580,-500.0,0.00024657,2]
[332178892,1721008245589,-500.0,0.00024657,2]
[332178893,1721008245599,-501.32704017,0.00024657,2]
[332178894,1721008245609,-501.14957988,0.00024657,2]
[332178895,1721008245618,-502.86843034,0.00024657,2]
[332178896,1721008245628,-500.0,0.00024657,2]
[332178897,1721008245637,-500.0,0.00024657,2]
[332178898,1721008245647,-500.0,0.00024657,2]
[332178899,1721008245657,-500.0,0.00024657,2]
[332178900,1721008245667,-500.0,0.00024657,2]
[332178901,1721008245676,-500.0,0.00024657,2]
[332178902,1721008245686,-500.0,0.00024657,2]
[332178903,1721008245695,-500.0,0.00024657,2]
[332178904,1721008245705,-500.0,0.00024657,2]
[332178905,1721008245715,-500.0,0.00024657,2]
[332178906,1721008245731,-916.39,0.00024657,2]
[332178907,1721008245740,-626.90735684,0.00024657,2]
[332178908,1721008245750,-500.0,0.00024657,2]
[332178909,1721008245759,-501.63637661,0.00024657,2]
[332178910,1721008245769,-500.0,0.00024657,2]
[332178911,1721008245778,-500.0,0.00024657,2]
[332178912,1721008245787,-500.0,0.00024657,2]
[332178913,1721008245796,-500.0,0.00024657,2]
[332178914,1721008245805,-500.0,0.00024657,2]
[332178916,1721008245814,-500.0,0.00024657,2]
[332178917,1721008245823,-600.21882274,0.00024657,2]
[332178918,1721008245833,-509.205498,0.00024657,2]
[332178919,1721008245843,-501.65727453,0.00024657,2]
[332178920,1721008245852,-504.37755116,0.00024657,2]
[332178921,1721008245865,-500.0,0.00024657,2]
[332178922,1721008245874,-500.0,0.00024657,2]
[332178923,1721008245884,-507.71092132,0.00024657,2]
[332178924,1721008245893,-500.0,0.00024657,2]
[332178925,1721008245903,-500.0,0.00024657,2]
[332178926,1721008245913,-500.0,0.00024657,2]
[332178927,1721008245923,-500.0,0.00024657,2]
[332178928,1721008245933,-500.0,0.00024657,2]
[332178929,1721008245947,-500.0,0.00024657,2]
[332178930,1721008245956,-520.3066586,0.00024657,2]
[332178931,1721008245966,-500.0,0.00024657,2]
[332178932,1721008245980,-500.0,0.00024657,2]
[332178933,1721008245990,-500.0,0.00024657,2]
[332178934,1721008246000,-500.0,0.00024657,2]
[332178935,1721008246010,-500.0,0.00024657,2]
[332178937,1721008246019,-500.0,0.00024657,2]
[332178939,1721008246028,-500.0,0.00024657,2]
[332178940,1721008246037,-500.0,0.00024657,2]
[332178941,1721008246047,-532.85699104,0.00024657,2]
[332178942,1721008246057,-500.0,0.00024657,2]
[332178943,1721008246066,-500.0,0.00024657,2]
[332178944,1721008246075,-512.43058029,0.00024657,2]
[332178945,1721008246084,-500.0,0.00024657,2]
[332178946,1721008246094,-504.70554578,0.00024657,2]
[332178947,1721008246103,-500.0,0.00024657,2]
[332178948,1721008246113,-500.0,0.00024657,2]
[332178949,1721008246122,-501.5832364,0.00024657,2]
[332178950,1721008246132,-500.0,0.00024657,2]
[332178951,1721008246142,-500.0,0.00024657,2]
[332178952,1721008246153,-500.0,0.00024657,2]
[332178953,1721008246162,-500.0,0.00024657,2]
[332178954,1721008246172,-500.0,0.00024657,2]
[332178955,1721008246181,-500.0,0.00024657,2]
[332178956,1721008246191,-500.0,0.00024657,2]
[332178957,1721008246201,-500.0,0.00024657,2]
[332178958,1721008246211,-500.0,0.00024657,2]
[332178959,1721008246224,-502.21178161,0.00024657,2]
[332178961,1721008246234,-500.0,0.00024657,2]
[332178962,1721008246245,-500.0,0.00024657,2]
[332178964,1721008246255,-500.0,0.00024657,2]
[332178966,1721008246265,-500.0,0.00024657,2]
[332178968,1721008246274,-500.0,0.00024657,2]
[332178970,1721008246284,-500.0,0.00024657,2]
[332178972,1721008246294,-500.0,0.00024657,2]
[332178974,1721008246303,-500.0,0.00024657,2]
[332178975,1721008246312,-504.42161964,0.00024657,2]
[332178976,1721008246322,-500.0,0.00024657,2]
[332178977,1721008246331,-500.0,0.00024657,2]
[332178978,1721008246341,-500.0,0.00024657,2]
[332178979,1721008246350,-500.0,0.00024657,2]
[332178980,1721008246360,-500.0,0.00024657,2]
[332178981,1721008246370,-200.0,0.00024657,7]
[332178982,1721008246379,-500.0,0.00024657,2]
[332178983,1721008246389,-530.94901078,0.00024657,2]
[332178984,1721008246398,-500.0,0.00024657,2]
[332178985,1721008246408,-559.93,0.00024657,2]
[332178986,1721008246417,-500.0,0.00024657,2]
[332178987,1721008246426,-503.180262,0.00024657,2]
[332178989,1721008246435,-500.0,0.00024657,2]
[332178991,1721008246445,-500.0,0.00024657,2]
[332178993,1721008246454,-500.0,0.00024657,2]
[332178995,1721008246463,-506.23049485,0.00024657,2]
[332178996,1721008246474,-500.0,0.00024657,2]
[332178998,1721008246483,-500.0,0.00024657,2]
[332179000,1721008246493,-500.0,0.00024657,2]
[332179001,1721008246503,-500.0,0.00024657,2]
[332179002,1721008246513,-500.0,0.00024657,2]
[332179003,1721008246522,-500.0,0.00024657,2]
[332179004,1721008246532,-500.0,0.00024657,2]
[332179005,1721008246542,-978.03,0.00024657,2]
[332179006,1721008246551,-500.0,0.00024657,2]
[332179007,1721008246561,-500.0,0.00024657,2]
[332179008,1721008246571,-500.0,0.00024657,2]
[332179009,1721008246580,-500.0,0.00024657,2]
[332179010,1721008246589,-523.0825896,0.00024657,2]
[332179011,1721008246598,-509.50327336,0.00024657,2]
[332179012,1721008246608,-500.0,0.00024657,2]
[332179013,1721008246617,-503.54408335,0.00024657,2]
[332179014,1721008246627,-500.0,0.00024657,2]
[332179015,1721008246637,-160.51271348,0.00024657,2]
[332179016,1721008246647,-500.0,0.00024657,2]
[332179017,1721008246656,-520.4384577,0.00024657,2]
[332179018,1721008246666,-500.0,0.00024657,2]
[332179019,1721008246679,-500.0,0.00024657,2]
[332179020,1721008246688,-500.0,0.00024657,2]
[332179021,1721008246698,-500.0,0.00024657,2]
[332179022,1721008246707,-500.0,0.00024657,2]
[332179023,1721008246717,-500.0,0.00024657,2]
[332179024,1721008246730,-500.0,0.00024657,2]
[332179025,1721008246739,-500.0,0.00024657,2]
[332179026,1721008246749,-500.0,0.00024657,2]
[332179027,1721008246761,-500.0,0.00024657,2]
[332179028,1721008246770,-501.83328013,0.00024657,2]
[332179029,1721008246779,-502.81892168,0.00024657,2]
[332179030,1721008246788,-500.0,0.00024657,2]
[332179031,1721008246797,-500.0,0.00024657,2]
[332179032,1721008246807,-500.0,0.00024657,2]
[332179033,1721008246816,-500.0,0.00024657,2]
[332179034,1721008246825,-212.80136045,0.00024657,2]
[332179035,1721008246835,-500.0,0.00024657,2]
[332179036,1721008246845,-500.0,0.00024657,2]
[332179037,1721008246856,-500.0,0.00024657,2]
[332179038,1721008246871,-12728.55,0.00024657,2]
[332179039,1721008246881,-500.0,0.00024657,2]
[332179040,1721008246890,-500.0,0.00024657,2]
[332179041,1721008246899,-500.0,0.00024657,2]
[332179042,1721008246910,-500.0,0.00024657,2]
[332179043,1721008246919,-500.0,0.00024657,2]
[332179044,1721008246930,-500.0,0.00024657,2]
[332179045,1721008246940,-500.0,0.00024657,2]
[332179046,1721008246950,-500.0,0.00024657,2]
[332179047,1721008246960,-500.0,0.00024657,2]
[332179048,1721008246969,-500.0,0.00024657,2]
[332179049,1721008246981,-500.0,0.00024657,2]
[332179050,1721008246990,-523.88405876,0.00024657,2]
[332179051,1721008246999,-500.0,0.00024657,2]
[332179052,1721008247008,-527.21818834,0.00024657,2]
[332179053,1721008247017,-500.0,0.00024657,2]
[332179054,1721008247026,-500.0,0.00024657,2]
[332179055,1721008247035,-500.0,0.00024657,2]
[332179056,1721008247045,-500.0,0.00024657,2]
[332179057,1721008247054,-500.0,0.00024657,2]
[332179058,1721008247063,-616.21,0.00024657,2]
[332179059,1721008247073,-500.0,0.00024657,2]
[332179060,1721008247082,-500.0,0.00024657,2]
[332179061,1721008247091,-504.98243252,0.00024657,2]
[332179062,1721008247100,-500.0,0.00024657,2]
[332179063,1721008247109,-500.0,0.00024657,2]
[332179064,1721008247118,-500.0,0.00024657,2]
[332179065,1721008247127,-2532.85,0.00024657,2]
[332179066,1721008247136,-500.0,0.00024657,2]
[332179067,1721008247145,-500.0,0.00024657,2]
[332179068,1721008247155,-500.0,0.00024657,2]
[332179069,1721008247165,-500.0,0.00024657,2]
[332179070,1721008247175,-500.0,0.00024657,2]
[332179071,1721008247185,-500.0,0.00024657,2]
[332179072,1721008247194,-569.25974538,0.00024657,2]
[332179073,1721008247203,-500.0,0.00024657,2]
[332179074,1721008247212,-500.0,0.00024657,2]
[332179075,1721008247221,-291.54639393,0.00024657,2]
[332179076,1721008247233,-500.0,0.00024657,2]
[332179077,1721008247243,-500.0,0.00024657,2]
[332179078,1721008247252,-500.0,0.00024657,2]
[332179079,1721008247262,-500.0,0.00024657,2]
[332179080,1721008247271,-536.17644548,0.00024657,2]
[332179081,1721008247281,-500.0,0.00024657,2]
[332179082,1721008247290,-500.0,0.00024657,2]
[332179083,1721008247299,-500.0,0.00024657,2]
[332179084,1721008247309,-518.77515967,0.00024657,2]
[332179085,1721008247318,-500.0,0.00024657,2]
[332179086,1721008247327,-545.48093747,0.00024657,2]
[332179087,1721008247336,-500.0,0.00024657,2]
[332179088,1721008247345,-500.0,0.00024657,2]
[332179089,1721008247354,-500.0,0.00024657,2]
[332179090,1721008247364,-500.0,0.00024657,2]
[332179091,1721008247373,-500.0,0.00024657,2]
[332179092,1721008247382,-508.07527546,0.00024657,2]
[332179093,1721008247391,-500.4571375,0.00024657,2]
[332179094,1721008247401,-500.0,0.00024657,2]
[332179095,1721008247410,-500.0,0.00024657,2]
[332179096,1721008247419,-500.0,0.00024657,2]
[332179097,1721008247428,-500.0,0.00024657,2]
[332179098,1721008247438,-504.8263138,0.00024657,2]
[332179099,1721008247447,-500.0,0.00024657,2]
[332179100,1721008247456,-500.0,0.00024657,2]
[332179101,1721008247465,-500.0,0.00024657,2]
[332179102,1721008247475,-500.0,0.00024657,2]
[332179103,1721008247484,-500.0,0.00024657,2]
[332179104,1721008247493,-500.0,0.00024657,2]
[332179105,1721008247502,-500.0,0.00024657,2]
[332179106,1721008247512,-500.0,0.00024657,2]
[332179107,1721008247521,-500.0,0.00024657,2]
[332179108,1721008247531,-500.0,0.00024658,2]
[332179109,1721008247540,-500.0,0.00024658,2]
[332179110,1721008247550,-500.0,0.00024658,2]
[332179111,1721008247559,-604.06164335,0.00024658,2]
[332179112,1721008247569,-250.9,0.00024695,2]
[332179113,1721008247578,-153.6630559,0.00024877,2]
[332179114,1721008247587,-1012.83218779,0.00024879,2]
[332179115,1721008247597,-302.21432435,0.000249,2]
[332179116,1721008247606,-503.89248389,0.00024931,2]
[332179117,1721008247615,-500.0,0.00024931,2]
[332179118,1721008247624,-501.22580125,0.00024931,2]
[332179119,1721008247634,-500.0,0.00024931,2]
[332179120,1721008247643,-504.77025239,0.00024931,2]
[332179121,1721008247653,-500.0,0.00024931,2]
[332179122,1721008247662,-296.87845233,0.00024931,2]
[332179123,1721008247672,-505.94078137,0.00024931,2]
[332179124,1721008247681,-500.0,0.00024931,2]
[332179125,1721008247690,-506.21150736,0.00024931,2]
[332179126,1721008247699,-507.39814378,0.00024931,2]
[332179127,1721008247709,-518.7514855,0.00024931,2]
[332179128,1721008247718,-505.28762453,0.00024931,2]
[332179129,1721008247730,-504.98454036,0.00024931,2]
[332179130,1721008247739,-500.0,0.00024931,2]
[332179131,1721008247748,-500.0,0.00024931,2]
[332179132,1721008247758,-514.04537027,0.00024931,2]
[332179133,1721008247768,-506.25500923,0.00024931,2]
[332179134,1721008247778,-508.24637384,0.00024931,2]
[332179135,1721008247788,-505.73395054,0.00024931,2]
[332179136,1721008247797,-528.99176698,0.00024931,2]
[332179137,1721008247806,-508.29512087,0.00024931,2]
[332179138,1721008247816,-505.92591135,0.00024931,2]
[332179139,1721008247825,-646.20176546,0.00024931,2]
[332179140,1721008247835,-500.0,0.00024931,2]
[332179141,1721008247845,-506.55279088,0.00024931,2]
[332179142,1721008247855,-801.09,0.00024931,4]
[332179143,1721008247868,-500.0,0.00024931,2]
[332179144,1721008247878,-533.72232806,0.00024931,2]
[332179145,1721008247887,-500.0,0.00024931,2]
[332179146,1721008247898,-503.73103914,0.00024931,2]
[332179147,1721008247908,-500.0,0.00024931,2]
[332179148,1721008247917,-509.68415969,0.00024931,2]
[332179149,1721008247927,-500.0,0.00024931,2]
[332179150,1721008247938,-500.0,0.00024931,2]
[332179151,1721008247947,-500.0,0.00024931,2]
[332179152,1721008247957,-500.0,0.00024931,2]
[332179153,1721008247967,-259.04598328,0.00024931,2]
[332179154,1721008247977,-522.27615834,0.00024931,2]
[332179155,1721008248089,-500.0,0.00024931,2]
[332179156,1721008248099,-510.70287579,0.00024931,2]
[332179157,1721008248109,-500.0,0.00024931,2]
[332179158,1721008248118,-570.55714144,0.00024931,2]
[332179159,1721008248127,-506.03761003,0.00024931,2]
[332179160,1721008248137,-500.0,0.00024931,2]
[332179161,1721008248146,-500.0,0.00024931,2]
[332179162,1721008248156,-500.0,0.00024931,2]
[332179163,1721008248165,-267.34119319,0.00024931,2]
[332179164,1721008248184,-230.59411836,0.00024931,2]
[332179165,1721008248193,-515.44520916,0.00024931,2]
[332179166,1721008248202,-500.0,0.00024931,2]
[332179167,1721008248212,-500.0,0.00024931,2]
[332179168,1721008248221,-456.78239132,0.00024931,2]
[332179169,1721008248235,-43.21760868,0.00024931,2]
[332179170,1721008248244,-503.72423193,0.00024931,2]
[332179171,1721008248253,-509.29635094,0.00024931,2]
[332179172,1721008248263,-508.05722532,0.00024931,2]
[332179173,1721008248273,-240.02800613,0.00024931,2]
[332179174,1721008248286,-259.97199387,0.00024931,2]
[332179175,1721008248295,-500.0,0.00024931,2]
[332179176,1721008248305,-500.0,0.00024931,2]
[332179177,1721008248316,-503.53732555,0.00024931,2]
[332179178,1721008248325,-505.92852377,0.00024931,2]
[332179179,1721008248336,-507.39260163,0.00024931,2]
[332179180,1721008248346,-500.0,0.00024931,2]
[332179181,1721008248356,-507.12656328,0.00024931,2]
[332179182,1721008248366,-504.27129091,0.00024931,2]
[332179183,1721008248375,-508.62270401,0.00024931,2]
[332179184,1721008248385,-146.86135539,0.00024931,2]
[332179185,1721008248509,-500.0,0.00024658,2]
[332179186,1721008248519,-500.0,0.00024658,2]
[332179187,1721008248529,-500.0,0.00024658,2]
[332179188,1721008248539,-391.57627105,0.00024658,2]
[332179189,1721008248548,-500.0,0.00024658,2]
[332179190,1721008248558,-500.0,0.00024658,2]
[332179191,1721008248567,-500.0,0.00024658,2]
[332179192,1721008248577,-500.0,0.00024658,2]
[332179193,1721008248586,-500.0,0.00024658,2]
[332179194,1721008248596,-500.0,0.00024658,2]
[332179195,1721008248606,-500.0,0.00024658,2]
[332179196,1721008248616,-230.97025603,0.00024658,2]
[332179197,1721008248625,-500.0,0.00024658,2]
[332179198,1721008248635,-500.0,0.00024658,2]
[332179199,1721008248644,-500.0,0.00024658,2]
[332179200,1721008248654,-500.0,0.00024658,2]
[332179201,1721008248663,-353.13864461,0.00024931,2]
[332179202,1721008248673,-500.0,0.00024931,2]
[332179203,1721008248683,-500.0,0.00024931,2]
[332179204,1721008248693,-500.0,0.00024931,2]
[332179205,1721008248703,-500.0,0.00024931,2]
[332179206,1721008248713,-500.0,0.00024931,2]
[332179207,1721008248725,-500.0,0.00024931,2]
[332179208,1721008248735,-336.66378628,0.00024931,2]
[332179209,1721008248745,-41.65104203,0.00024931,2]
[332179210,1721008248758,-458.34895797,0.00024931,2]
[332179211,1721008248767,-261.44104203,0.00024931,2]
[332179212,1721008248779,-238.55895797,0.00024931,2]
[332179213,1721008248789,-500.0,0.00024931,2]
[332179214,1721008248799,-522.34555559,0.00024931,2]
[332179215,1721008248809,-546.57152165,0.00024931,2]
[332179216,1721008248819,-500.0,0.00024931,2]
[332179217,1721008248829,-500.0,0.00024931,2]
[332179218,1721008248838,-500.0,0.00024931,2]
[332179219,1721008248848,-500.0,0.00024931,2]
[332179220,1721008248863,-501.97372455,0.00024931,2]
[332179221,1721008248874,-500.0,0.00024931,2]
[332179222,1721008248885,-500.0,0.00024931,2]
[332179223,1721008248896,-500.0,0.00024931,2]
[332179224,1721008248907,-500.0,0.00024931,2]
[332179225,1721008248918,-500.0,0.00024931,2]
[332179226,1721008248928,-500.0,0.00024931,2]
[332179227,1721008248941,-510.01097221,0.00024931,2]